bitfinex-derivatives/quotes_ETHF0:USTF0_20260119
["timestamp","ask_amount","ask_price","bid_price","bid_amount"]
[1768841122541,0.85611552,3220.9,3219.5,1.49726195]
[1768841122741,0.85611552,3220.8,3219.5,1.49726195]
[1768841122934,1.61243775,3221.2,3219.5,1.49726195]
[1768841123138,0.85628142,3221.1,3219.5,1.49726195]
[1768841123336,0.85628142,3221.0,3219.5,1.49726195]
[1768841123537,0.85628142,3220.9,3219.5,1.49726195]
[1768841123736,0.85628142,3220.8,3219.5,1.49726195]
[1768841123940,1.61243775,3221.2,3219.5,1.49726195]
[1768841124138,0.85646796,3221.1,3219.6,1.6031813]
[1768841124442,0.85646796,3221.0,3219.6,1.6031813]
[1768841124635,0.85646796,3220.9,3219.6,1.6031813]
[1768841124838,0.85646796,3220.8,3219.6,1.6031813]
[1768841125038,1.45713775,3221.2,3219.6,1.6031813]
[1768841125238,0.85669215,3221.1,3219.6,1.6031813]
[1768841125535,0.85669215,3221.0,3219.6,1.6031813]
[1768841125737,0.85669215,3220.9,3219.6,1.6031813]
[1768841125935,1.45713775,3221.2,3219.3,0.00376305]
[1768841125936,0.85669215,3220.8,3219.7,1.6031713]
[1768841126135,0.00365611,3221.2,3219.8,1.6031713]
[1768841126345,0.85691043,3221.1,3219.8,1.6031713]
[1768841126646,0.85691043,3221.0,3219.8,1.6031713]
[1768841126843,0.00365611,3221.2,3220.0,1.6031613]
[1768841128447,0.85705814,3221.1,3220.0,1.6031613]
[1768841128643,0.00365611,3221.2,3220.0,1.6031613]
[1768841135354,0.00365611,3221.2,3220.0,0.15536]
[1768841145359,0.00365611,3221.2,3220.0,1.50413154]
[1768841147567,1.28671188,3221.1,3220.0,1.50413154]
[1768841148864,0.00365611,3221.2,3220.0,1.50413154]
[1768841149366,0.85660514,3221.1,3220.0,1.50413154]
[1768841149557,0.00365611,3221.2,3220.0,1.50413154]
[1768841149759,0.85661602,3221.1,3220.0,1.50413154]
[1768841149957,0.00365611,3221.2,3220.0,1.50413154]
[1768841150270,0.85661602,3221.1,3220.0,1.50413154]
[1768841150472,0.00365611,3221.2,3220.0,1.50413154]
[1768841150671,0.8567002,3221.1,3220.0,1.50413154]
[1768841150872,0.00365611,3221.2,3220.0,1.50413154]
[1768841151072,0.85670088,3221.1,3220.0,1.50413154]
[1768841151273,0.00365611,3221.2,3220.0,1.50413154]
[1768841151463,0.85681268,3221.1,3220.0,1.50413154]
[1768841151774,1.28671188,3220.7,3219.6,1.34877154]
[1768841152173,1.34568125,3221.2,3219.6,1.34877154]
[1768841152471,1.28671188,3220.9,3219.6,1.34877154]
[1768841152672,0.85694948,3220.8,3219.6,1.34877154]
[1768841154372,1.28671188,3220.7,3219.6,1.34877154]
[1768841154673,0.85703007,3220.6,3219.6,1.34877154]
[1768841154863,1.28671188,3220.7,3219.6,1.34877154]
[1768841155064,0.85703102,3220.6,3219.6,1.34877154]
[1768841155265,1.28671188,3220.7,3219.6,1.34877154]
[1768841155465,0.85696691,3220.6,3219.6,1.34877154]
[1768841155667,1.28671188,3220.7,3219.6,1.34877154]
[1768841155967,0.85696689,3220.6,3219.6,1.34877154]
[1768841156164,1.28671188,3220.7,3219.6,1.34877154]
[1768841156568,3.17837757,3221.2,3219.6,1.34877154]
[1768841156776,1.1425513,3221.1,3219.6,2.63548342]
[1768841157070,0.85680706,3221.0,3219.6,2.63548342]
[1768841157276,0.85680706,3220.9,3219.6,2.63548342]
[1768841158176,0.85680706,3220.9,3219.6,1.34877154]
[1768841160370,0.85680706,3220.9,3220.1,2.70903813]
[1768841160571,0.00365611,3221.2,3220.1,2.70903813]
[1768841160771,0.85637481,3221.1,3220.1,2.70903813]
[1768841160971,0.85637481,3221.0,3220.1,2.70903813]
[1768841161269,0.85637481,3220.9,3220.1,2.70903813]
[1768841161467,0.85637481,3220.8,3220.1,2.70903813]
[1768841161667,0.00365611,3221.2,3220.1,1.42232625]
[1768841161876,0.85534776,3221.1,3220.1,1.42232625]
[1768841162079,0.85534776,3221.0,3220.1,1.42232625]
[1768841162275,0.85534776,3220.9,3220.1,1.42232625]
[1768841162477,0.00365611,3221.2,3220.1,1.42232625]
[1768841162683,0.85533194,3221.1,3220.1,1.42232625]
[1768841162881,0.85533194,3221.0,3220.1,1.42232625]
[1768841163179,0.85533194,3220.9,3220.1,1.42232625]
[1768841163373,0.00365611,3221.2,3220.1,1.42232625]
[1768841163574,0.85531441,3221.1,3220.1,1.42232625]
[1768841163780,0.85531441,3221.0,3220.1,1.42232625]
[1768841163976,0.85531441,3220.9,3220.1,1.42232625]
[1768841164177,0.00365611,3221.2,3220.1,1.42232625]
[1768841164384,0.85532787,3221.1,3220.1,1.42232625]
[1768841164681,0.85532787,3221.0,3220.1,1.42232625]
[1768841164883,0.85532787,3220.9,3220.1,1.42232625]
[1768841165183,0.00365611,3221.2,3220.1,1.42232625]
[1768841165376,0.8553461,3221.1,3220.1,1.42232625]
[1768841165576,0.8553461,3221.0,3220.1,1.42232625]
[1768841165775,0.00365611,3221.2,3220.1,1.42232625]
[1768841165980,0.85533779,3221.1,3220.1,1.42232625]
[1768841166277,0.85533779,3221.0,3220.1,1.42232625]
[1768841166473,0.00365611,3221.2,3220.1,1.42232625]
[1768841166777,0.85536699,3221.1,3220.1,1.42232625]
[1768841166978,0.85536699,3221.0,3220.1,1.42232625]
[1768841167167,0.00365611,3221.2,3220.1,1.42232625]
[1768841167372,0.85540326,3221.1,3220.1,1.42232625]
[1768841167676,0.85540326,3221.0,3220.1,1.42232625]
[1768841167873,0.00365611,3221.2,3220.1,1.42232625]
[1768841168081,0.85540358,3221.1,3220.1,1.42232625]
[1768841168382,0.85540358,3221.0,3220.1,1.42232625]
[1768841168579,0.00365611,3221.2,3220.1,1.42232625]
[1768841168884,0.85544506,3221.1,3220.1,1.42232625]
[1768841169084,0.85544506,3221.0,3220.1,1.42232625]
[1768841169386,0.00365611,3221.2,3220.1,1.42232625]
[1768841169574,0.85549116,3221.1,3220.1,1.42232625]
[1768841169882,0.85549116,3221.0,3220.1,1.42232625]
[1768841170080,1.29036799,3221.2,3220.1,1.42232625]
[1768841170282,0.85551866,3221.1,3220.1,1.42232625]
[1768841170478,0.85551866,3221.0,3220.1,1.42232625]
[1768841170782,0.85554258,3220.9,3220.1,1.42232625]
[1768841170983,1.29036799,3221.2,3220.1,1.42232625]
[1768841171174,0.85554258,3221.1,3220.1,1.42232625]
[1768841171376,0.85554258,3221.0,3220.1,1.42232625]
[1768841171576,0.85554258,3220.9,3220.1,1.42232625]
[1768841171779,1.29036799,3221.2,3220.1,1.42232625]
[1768841171977,0.85559895,3221.1,3220.1,1.42232625]
[1768841172177,0.85559895,3221.0,3220.1,1.42232625]
[1768841172379,0.85559895,3220.9,3220.1,1.42232625]
[1768841172585,1.29036799,3221.2,3220.1,1.42232625]
[1768841172786,0.85566162,3221.1,3220.1,1.42232625]
[1768841172987,0.85566162,3221.0,3220.1,1.42232625]
[1768841173289,0.85566162,3220.9,3220.1,1.42232625]
[1768841173491,0.00365611,3221.2,3220.1,1.42232625]
[1768841173792,0.85570326,3221.1,3220.1,1.42232625]
[1768841174089,0.85570326,3221.0,3220.1,1.42232625]
[1768841174290,0.85570326,3220.9,3220.1,1.42232625]
[1768841174478,0.00365611,3221.2,3220.1,1.42232625]
[1768841174680,0.85575132,3221.1,3220.1,1.42232625]
[1768841174880,0.85575132,3221.0,3220.1,1.42232625]
[1768841175086,0.85575132,3220.9,3220.1,1.42232625]
[1768841175283,1.28671188,3221.0,3219.7,2.70903813]
[1768841175588,0.85580585,3220.9,3219.7,2.70903813]
[1768841175787,1.28671188,3221.0,3219.7,2.70903813]
[1768841175986,0.8565538,3220.9,3219.7,2.70903813]
[1768841176278,1.28671188,3221.0,3219.7,2.70903813]
[1768841176474,0.8566124,3220.9,3219.8,1.42232625]
[1768841176691,0.00365611,3221.2,3219.9,2.70903813]
[1768841176889,0.85658632,3221.1,3219.9,2.70903813]
[1768841177091,0.85658632,3221.0,3219.9,2.70903813]
[1768841177293,0.85658632,3220.9,3219.9,2.70903813]
[1768841177591,0.00365611,3221.2,3219.9,2.70903813]
[1768841177894,0.856651,3221.1,3219.9,2.70903813]
[1768841178089,0.856651,3221.0,3220.0,1.42232625]
[1768841178393,0.856651,3220.9,3220.0,1.42232625]
[1768841178592,0.00365611,3221.2,3220.0,1.42232625]
[1768841178893,0.85671341,3221.1,3220.0,1.42232625]
[1768841179093,0.85671341,3221.0,3220.0,1.42232625]
[1768841179294,0.85671341,3220.9,3220.0,1.42232625]
[1768841179595,0.00365611,3221.2,3220.0,1.42232625]
[1768841179787,0.85678859,3221.1,3220.0,1.42232625]
[1768841179984,0.85678859,3221.0,3220.0,1.42232625]
[1768841180187,0.00365611,3221.2,3220.2,1.42232625]
[1768841180389,0.85683595,3221.1,3220.3,1.28671188]
[1768841180587,0.00365611,3221.2,3220.3,1.28671188]
[1768841180788,0.85682801,3221.1,3220.3,1.28671188]
[1768841180991,0.00365611,3221.2,3220.3,1.28671188]
[1768841181191,0.85682802,3221.1,3220.3,1.28671188]
[1768841181402,0.00365611,3221.2,3220.3,1.28671188]
[1768841181695,0.85594284,3221.1,3220.3,1.28671188]
[1768841181998,0.00365611,3221.2,3220.2,2.70903813]
[1768841182290,0.00365611,3221.2,3220.3,1.42232625]
[1768841182291,0.85594288,3221.1,3220.3,1.42232625]
[1768841182488,0.00365611,3221.2,3220.3,1.42232625]
[1768841182690,0.8558416,3221.1,3220.3,1.42232625]
[1768841182889,0.00365611,3221.2,3220.3,1.42232625]
[1768841183090,0.85585544,3221.1,3220.3,1.42232625]
[1768841183390,0.00365611,3221.2,3220.3,1.42232625]
[1768841187895,0.00365611,3221.2,3220.1,1.28671188]
[1768841189197,0.8558191,3221.1,3220.1,1.28671188]
[1768841189392,0.00365611,3221.2,3220.1,1.28671188]
[1768841189702,0.8558191,3221.1,3220.1,1.28671188]
[1768841190001,0.00365611,3221.2,3219.9,2.73563885]
[1768841190203,0.85581919,3221.1,3219.9,2.73563885]
[1768841190501,1.29036799,3221.2,3219.9,2.73563885]
[1768841190703,0.85582656,3221.1,3219.9,2.73563885]
[1768841190893,0.00365611,3221.2,3219.9,2.73563885]
[1768841191097,0.85582567,3221.1,3219.9,2.73563885]
[1768841191296,0.00365611,3221.2,3219.9,2.73563885]
[1768841191497,0.85584173,3221.1,3219.9,2.73563885]
[1768841191698,0.00365611,3221.2,3219.9,2.73563885]
[1768841191897,0.85584173,3221.1,3219.9,2.73563885]
[1768841192098,0.00365611,3221.2,3219.9,2.73563885]
[1768841192298,0.85586692,3221.1,3219.9,2.73563885]
[1768841192499,0.00365611,3221.2,3219.9,2.73563885]
[1768841192694,0.00365611,3221.2,3220.0,1.44892697]
[1768841192695,0.85586676,3221.1,3220.0,1.44892697]
[1768841192901,0.00365611,3221.2,3220.0,1.44892697]
[1768841193205,0.85586659,3221.1,3220.1,1.28671188]
[1768841193507,0.00365611,3221.2,3220.1,2.73563885]
[1768841193711,0.85588339,3221.1,3220.2,1.44892697]
[1768841193902,0.00365611,3221.2,3220.2,1.44892697]
[1768841194199,0.85588323,3221.1,3220.2,1.44892697]
[1768841194507,0.00365611,3221.2,3220.2,1.44892697]
[1768841194709,0.85589557,3221.1,3220.2,1.44892697]
[1768841194902,0.00365611,3221.2,3220.2,1.44892697]
[1768841195209,0.85589573,3221.1,3220.3,1.28671188]
[1768841195400,0.00365611,3221.2,3220.3,1.28671188]
[1768841195600,0.85589991,3221.1,3220.3,1.28671188]
[1768841195800,0.00365611,3221.2,3220.3,1.28671188]
[1768841196108,0.85589991,3221.1,3220.3,1.28671188]
[1768841196308,0.00365611,3221.2,3220.3,1.28671188]
[1768841196510,0.85590066,3221.1,3220.3,1.28671188]
[1768841196708,0.00365611,3221.2,3220.2,1.44892697]
[1768841196912,0.85590079,3221.1,3220.2,1.44892697]
[1768841197107,0.00365611,3221.2,3220.2,1.44892697]
[1768841197306,0.85590119,3221.1,3220.2,1.44892697]
[1768841197504,0.00365611,3221.2,3220.2,1.44892697]
[1768841197705,0.85590106,3221.1,3220.2,1.44892697]
[1768841197910,0.00365611,3221.2,3220.2,1.44892697]
[1768841198211,0.85590105,3221.1,3220.2,1.44892697]
[1768841198407,0.00365611,3221.2,3220.2,1.44892697]
[1768841198607,0.85590787,3221.1,3220.2,1.44892697]
[1768841198809,0.00365611,3221.2,3220.2,1.44892697]
[1768841199010,0.85590787,3221.1,3220.2,1.44892697]
[1768841199197,0.00365611,3221.2,3220.2,1.44892697]
[1768841199404,0.8559198,3221.1,3220.2,1.44892697]
[1768841199612,0.00365611,3221.2,3220.2,1.44892697]
[1768841199805,0.8559198,3221.1,3220.2,1.44892697]
[1768841199999,0.00365611,3221.2,3220.2,1.44892697]
[1768841200206,0.85591964,3221.1,3220.2,1.44892697]
[1768841200510,0.00365611,3221.2,3220.2,1.44892697]
[1768841200710,0.85593616,3221.1,3220.2,1.44892697]
[1768841201016,1.28671188,3220.7,3219.8,1.37401333]
[1768841201509,1.42110413,3221.2,3219.8,1.37401333]
[1768841201706,1.28671188,3221.0,3219.8,1.37401333]
[1768841204712,0.85614912,3220.9,3219.8,1.37401333]
[1768841205010,1.42110413,3221.2,3219.8,1.37401333]
[1768841205201,0.8561498,3221.1,3219.8,1.37401333]
[1768841205397,0.8561498,3221.0,3219.8,1.37401333]
[1768841205597,0.8561498,3220.9,3219.8,1.37401333]
[1768841205798,1.42110413,3221.2,3219.8,1.37401333]
[1768841205999,0.85730082,3221.1,3219.8,1.37401333]
[1768841206215,0.85730082,3221.0,3219.8,1.37401333]
[1768841206407,0.85730082,3220.9,3219.8,1.37401333]
[1768841206607,1.42110413,3221.2,3219.8,1.37401333]
[1768841206813,0.85734444,3221.1,3219.8,1.37401333]
[1768841207017,0.85734444,3221.0,3219.8,1.37401333]
[1768841207315,0.85734444,3220.9,3219.8,1.37401333]
[1768841207514,1.42110413,3221.2,3219.8,1.37401333]
[1768841207717,0.85734784,3221.1,3219.8,1.37401333]
[1768841207912,0.85734784,3221.0,3219.8,1.37401333]
[1768841208106,0.85734784,3220.9,3219.8,1.37401333]
[1768841208306,1.42110413,3221.2,3219.8,1.37401333]
[1768841208617,0.85735059,3221.1,3219.8,1.37401333]
[1768841208819,0.85735059,3221.0,3219.8,1.37401333]
[1768841209008,0.85735059,3220.9,3219.8,1.37401333]
[1768841209316,1.42110413,3221.2,3219.8,1.37401333]
[1768841209523,0.85735089,3221.1,3219.8,1.37401333]
[1768841209715,0.85735089,3221.0,3219.8,1.37401333]
[1768841209916,0.85735089,3220.9,3219.8,1.37401333]
[1768841210215,1.42110413,3221.2,3219.8,1.37401333]
[1768841210415,0.85733722,3221.1,3219.8,1.37401333]
[1768841210617,0.85733722,3221.0,3219.8,1.37401333]
[1768841210806,0.85733722,3220.9,3219.8,1.37401333]
[1768841211012,1.42110413,3221.2,3219.8,1.37401333]
[1768841211317,0.85733705,3221.1,3219.8,1.37401333]
[1768841211508,0.85733705,3221.0,3219.8,1.37401333]
[1768841211709,1.42110413,3221.2,3219.8,1.37401333]
[1768841211710,0.85733705,3220.9,3219.8,1.37401333]
[1768841212018,0.00365611,3221.2,3219.8,1.37401333]
[1768841212220,0.85726191,3221.1,3219.8,1.37401333]
[1768841212421,0.00365611,3221.2,3220.0,1.37401333]
[1768841212422,0.85726191,3221.0,3220.0,1.37401333]
[1768841212612,0.00365611,3221.2,3220.0,1.37401333]
[1768841212917,0.85640738,3221.1,3220.0,1.37401333]
[1768841213116,0.00365611,3221.2,3220.0,1.37401333]
[1768841213317,0.8564153,3221.1,3220.0,1.37401333]
[1768841213515,0.00365611,3221.2,3220.0,1.37401333]
[1768841213713,0.85640393,3221.1,3220.0,1.37401333]
[1768841213911,0.00365611,3221.2,3220.0,1.37401333]
[1768841215516,0.85634564,3221.1,3220.0,1.37401333]
[1768841215713,0.00365611,3221.2,3220.0,1.37401333]
[1768841215914,0.85636164,3221.1,3220.0,1.37401333]
[1768841216111,0.00365611,3221.2,3220.0,1.37401333]
[1768841216412,0.85637055,3221.1,3220.0,1.37401333]
[1768841216614,0.00365611,3221.2,3220.0,1.37401333]
[1768841216820,0.85636325,3221.1,3220.0,1.37401333]
[1768841217014,0.00365611,3221.2,3220.0,1.37401333]
[1768841217217,0.85636559,3221.1,3220.0,1.37401333]
[1768841217417,0.00365611,3221.2,3220.0,1.37401333]
[1768841217620,0.85636184,3221.1,3220.0,1.37401333]
[1768841217918,0.00365611,3221.2,3220.0,1.37401333]
[1768841218105,0.85636217,3221.1,3220.0,1.37401333]
[1768841218309,0.00365611,3221.2,3220.0,1.37401333]
[1768841218512,0.8563546,3221.1,3220.0,1.37401333]
[1768841218722,0.00365611,3221.2,3220.0,1.37401333]
[1768841219021,0.85635231,3221.1,3220.0,1.37401333]
[1768841219219,0.00365611,3221.2,3220.0,1.37401333]
[1768841219420,0.85634681,3221.1,3220.0,1.37401333]
[1768841219622,0.00365611,3221.2,3220.0,1.37401333]
[1768841219820,0.85634639,3221.1,3220.0,1.37401333]
[1768841220021,0.00365611,3221.2,3220.0,1.37401333]
[1768841220222,0.85634659,3221.1,3220.0,1.37401333]
[1768841220417,0.00365611,3221.2,3220.0,1.37401333]
[1768841226118,0.00365611,3221.2,3220.3,1.28700676]
[1768841226321,3.0365462,3222.0,3220.4,1.30756061]
[1768841226623,1.14190145,3221.9,3220.4,1.30756061]
[1768841226821,0.8561227,3221.8,3220.4,1.30756061]
[1768841227118,0.8561227,3221.7,3220.4,1.30756061]
[1768841227318,0.8561227,3221.6,3220.4,1.30756061]
[1768841227523,0.8561227,3221.5,3220.4,1.30756061]
[1768841227725,0.00341442,3221.7,3220.4,1.30756061]
[1768841227925,0.8559761,3221.6,3220.4,1.30756061]
[1768841228226,0.8559761,3221.5,3220.4,1.30756061]
[1768841228430,0.00341442,3221.7,3220.4,1.30756061]
[1768841228624,0.85585721,3221.6,3220.4,1.30756061]
[1768841228820,0.00341442,3221.7,3220.4,1.30756061]
[1768841228821,0.85585721,3221.5,3220.4,1.30756061]
[1768841229021,0.00341442,3221.7,3220.4,1.30756061]
[1768841229223,0.85585722,3221.6,3220.4,1.30756061]
[1768841229422,0.85585722,3221.5,3220.4,1.30756061]
[1768841229720,0.00341442,3221.7,3220.4,1.30756061]
[1768841229921,0.85575429,3221.6,3220.4,1.30756061]
[1768841230221,0.85575429,3221.5,3220.4,1.30756061]
[1768841230424,0.00341442,3221.7,3220.4,1.30756061]
[1768841230724,0.85566399,3221.6,3220.4,1.30756061]
[1768841230924,0.85566399,3221.5,3220.4,1.30756061]
[1768841231125,0.00341442,3221.7,3220.4,1.30756061]
[1768841231330,0.85559221,3221.6,3220.4,1.30756061]
[1768841231628,0.85559221,3221.5,3220.4,1.30756061]
[1768841231836,0.00341442,3221.7,3220.4,1.30756061]
[1768841232025,0.85559189,3221.6,3220.4,1.30756061]
[1768841232222,0.85559189,3221.5,3220.4,1.30756061]
[1768841232422,0.00341442,3221.7,3220.4,1.30756061]
[1768841232626,0.85553225,3221.6,3220.4,1.30756061]
[1768841232923,0.00341442,3221.7,3220.4,1.30756061]
[1768841232924,0.85553225,3221.5,3220.4,1.30756061]
[1768841233124,0.00341442,3221.7,3220.4,1.30756061]
[1768841233318,0.85548477,3221.6,3220.4,1.30756061]
[1768841233517,0.85548477,3221.5,3220.4,1.30756061]
[1768841233718,0.00341442,3221.7,3220.4,1.30756061]
[1768841234025,0.8554847,3221.6,3220.4,1.30756061]
[1768841234224,0.8554847,3221.5,3220.4,1.30756061]
[1768841234426,0.00341442,3221.7,3220.4,1.30756061]
[1768841234624,0.85544744,3221.6,3220.4,1.30756061]
[1768841234824,0.85544744,3221.5,3220.4,1.30756061]
[1768841235025,0.00341442,3221.7,3220.4,1.30756061]
[1768841235227,0.85544782,3221.6,3220.4,1.30756061]
[1768841235426,0.85544782,3221.5,3220.4,1.30756061]
[1768841235621,0.00341442,3221.7,3220.4,1.30756061]
[1768841235816,0.85543987,3221.6,3220.4,1.30756061]
[1768841236018,0.00341442,3221.7,3220.4,1.30756061]
[1768841236230,0.85046939,3221.6,3220.4,1.30756061]
[1768841236427,0.00341442,3221.7,3220.4,1.30756061]
[1768841236628,0.85045207,3221.6,3220.4,1.30756061]
[1768841236820,0.00341442,3221.7,3220.4,1.30756061]
[1768841237021,0.85045224,3221.6,3220.4,1.30756061]
[1768841237222,0.00341442,3221.7,3220.4,1.30756061]
[1768841237428,0.85046858,3221.6,3220.4,1.30756061]
[1768841237635,0.00341442,3221.7,3220.4,1.30756061]
[1768841237827,0.85046858,3221.6,3220.4,1.30756061]
[1768841238130,0.00466135,3221.3,3220.4,1.30756061]
[1768841240934,0.00466135,3221.3,3220.4,1.46290061]
[1768841241231,0.00341442,3221.7,3220.6,1.30756061]
[1768841241634,0.00341442,3221.7,3220.6,1.46289061]
[1768841265549,0.00341442,3221.7,3220.6,1.30756061]
[1768841266851,0.00341442,3221.7,3220.6,2.59374141]
[1768841269650,0.00341442,3221.7,3220.8,1.2861808]
[1768841270957,0.00341442,3221.7,3220.8,2.56142701]
[1768841272354,0.00341442,3221.7,3220.9,1.27524621]
[1768841281766,1.28959522,3221.7,3220.5,0.00466135]
[1768841282054,1.2861808,3221.2,3220.5,0.00466135]
[1768841283059,0.85102557,3221.1,3220.5,0.00466135]
[1768841283249,1.2861808,3221.2,3220.5,0.00466135]
[1768841287966,1.2861808,3221.0,3220.5,0.00466135]
[1768841288167,1.2861808,3220.8,3219.9,1.25110648]
[1768841288867,1.2861808,3221.0,3219.9,1.25110648]
[1768841293673,1.2861808,3220.8,3219.5,1.25110648]
[1768841294068,2.13537038,3220.7,3219.5,1.25110648]
[1768841294277,1.2861808,3220.7,3219.5,1.25110648]
[1768841297386,1.2861808,3220.8,3219.5,1.25110648]
[1768841298283,1.67739632,3221.3,3219.4,1.2861808]
[1768841298284,1.53146731,3221.3,3220.1,1.25110648]
[1768841298486,1.25707388,3222.4,3220.5,1.25110648]
[1768841298783,1.25707388,3222.4,3221.1,1.2861808]
[1768841299283,1.2861808,3222.0,3220.1,42.05110648]
[1768841299490,1.2861808,3221.4,3220.0,1.2861808]
[1768841300086,1.25707388,3221.3,3220.0,1.2861808]
[1768841301087,2.54325468,3221.3,3219.7,1.40647648]
[1768841301290,2.54325468,3221.3,3219.8,1.2861808]
[1768841302788,1.27265934,3221.2,3219.8,1.2861808]
[1768841303887,2.55884014,3221.1,3219.6,1.2861808]
[1768841304088,1.2861808,3220.9,3219.3,0.00376305]
[1768841304294,2.55884014,3220.9,3219.4,1.2861808]
[1768841304485,2.55884014,3220.9,3219.6,1.2861808]
[1768841305886,1.27265934,3220.9,3219.6,1.2861808]
[1768841312103,1.2861808,3220.7,3219.5,0.15538]
[1768841312401,1.2861808,3220.3,3219.5,0.15538]
[1768841313197,2.55884014,3220.5,3219.5,0.15538]
[1768841318194,1.27265934,3220.5,3219.5,0.15538]
[1768841319701,1.27265934,3220.5,3219.3,1.28994385]
[1768841322196,1.36900467,3220.4,3219.3,0.00376305]
[1768841332511,1.36900467,3220.2,3219.3,0.00376305]
[1768841332811,1.41107804,3220.0,3219.3,0.00376305]
[1768841334411,1.41107804,3220.0,3218.4,0.15544]
[1768841334712,1.41107804,3219.8,3218.4,0.15544]
[1768841335614,1.41107804,3219.8,3218.4,0.15940619]
[1768841336813,1.41107804,3219.8,3218.4,0.00396619]
[1768841337709,1.41107804,3219.8,3218.6,0.15543]
[1768841341913,1.41107804,3219.8,3218.4,0.00396619]
[1768841342113,1.41107804,3219.6,3218.4,0.00396619]
[1768841342612,1.41107804,3219.4,3218.4,0.00396619]
[1768841342820,1.41107804,3219.2,3218.4,0.00396619]
[1768841343006,1.41107804,3219.2,3217.6,0.15547]
[1768841344126,1.41107804,3219.2,3217.6,0.15911725]
[1768841352926,0.00341824,3219.4,3217.8,2.70068033]
[1768841353122,0.00341824,3219.4,3218.2,1.28728149]
[1768841353518,0.00341824,3219.4,3218.1,0.15545]
[1768841354134,0.00341824,3219.4,3218.2,0.15545]
[1768841354715,0.00341824,3219.4,3218.3,0.15544]
[1768841354915,2.22928784,3220.7,3218.5,1.44271149]
[1768841354916,1.41107804,3220.0,3218.5,1.44271149]
[1768841355523,1.41107804,3220.0,3218.5,42.24271149]
[1768841356031,1.41376999,3220.0,3218.5,42.24271149]
[1768841356529,1.41376999,3220.0,3218.5,1.44271149]
[1768841356924,1.41376999,3220.0,3218.5,1.28728149]
[1768841357130,1.41376999,3220.0,3218.8,0.15542]
[1768841357927,0.00269195,3220.0,3218.9,0.15541]
[1768841358333,0.00269195,3220.0,3218.9,1.28728149]
[1768841358633,0.00269195,3220.0,3219.2,0.1554]
[1768841359231,0.00269195,3220.0,3219.3,0.15539]
[1768841361532,0.00269195,3220.0,3219.4,0.15539]
[1768841361733,1.41107804,3220.4,3219.4,0.15539]
[1768841362733,1.41393788,3220.4,3219.4,0.15539]
[1768841364223,1.41393788,3220.4,3218.7,0.15542]
[1768841364430,1.49740203,3220.1,3218.8,0.15542]
[1768841365936,1.49740203,3220.1,3219.0,0.15541]
[1768841370544,1.49740203,3220.1,3218.4,0.15544]
[1768841370841,0.86005143,3220.0,3218.4,0.15544]
[1768841371042,1.49740203,3219.8,3218.4,0.15544]
[1768841371741,1.49740203,3219.7,3218.4,0.15544]
[1768841372644,0.85996146,3219.6,3218.4,0.15544]
[1768841372943,1.49740203,3219.7,3218.4,0.15544]
[1768841373144,0.85996145,3219.6,3218.4,0.15544]
[1768841373346,1.49740203,3219.7,3218.4,0.15544]
[1768841373545,1.49740203,3219.5,3218.4,0.15544]
[1768841375340,1.49740203,3219.3,3217.8,0.15547]
[1768841384955,1.49740203,3219.3,3217.9,0.15546]
[1768841388759,1.49740203,3219.3,3218.0,0.15546]
[1768841390862,1.46321065,3219.2,3218.0,1.44375647]
[1768841391159,1.46321065,3219.2,3218.0,0.15546]
[1768841391361,1.46321065,3219.2,3218.0,1.44375647]
[1768841397463,1.41251144,3218.9,3218.0,0.15546]
[1768841399761,1.41251144,3218.9,3217.8,1.28829647]
[1768841402670,1.41251144,3218.7,3217.6,0.15912725]
[1768841404158,1.41251144,3218.7,3217.6,0.00364725]
[1768841404554,1.41251144,3218.5,3217.6,0.00364725]
[1768841407464,1.41251144,3218.5,3217.6,1.29194372]
[1768841410172,1.41251144,3218.5,3217.6,0.00364725]
[1768841410964,1.41251144,3218.5,3217.6,1.29194372]
[1768841414379,1.41251144,3218.5,3217.6,0.00364725]
[1768841415878,1.41251144,3218.9,3217.8,1.28829647]
[1768841416077,0.86032123,3218.8,3217.8,1.28829647]
[1768841416279,1.41251144,3218.9,3217.6,0.15911725]
[1768841416478,0.86032733,3218.8,3217.7,1.28829647]
[1768841416773,1.41251144,3218.9,3217.7,1.28829647]
[1768841416978,0.86033482,3218.8,3217.7,1.28829647]
[1768841417176,1.41251144,3218.9,3217.7,1.28829647]
[1768841417374,0.86035441,3218.8,3217.7,1.28829647]
[1768841417573,1.41251144,3218.6,3217.6,0.15911725]
[1768841418878,1.41251144,3218.6,3217.6,1.44741372]
[1768841422995,1.41251144,3218.6,3217.6,0.00364725]
[1768841424291,1.41251144,3218.6,3217.7,1.28829647]
[1768841424491,1.41251144,3218.6,3217.9,1.28829647]
[1768841424689,1.41251144,3218.6,3217.6,0.00364725]
[1768841424887,2.73260241,3219.0,3217.6,1.29194372]
[1768841425089,2.3049839,3218.9,3217.6,1.29194372]
[1768841425288,0.86067796,3218.8,3217.6,1.29194372]
[1768841425689,2.3049839,3218.8,3217.6,1.29194372]
[1768841425995,0.86067796,3218.7,3217.6,0.00364725]
[1768841426292,0.86067796,3218.7,3217.7,1.28829647]
[1768841426691,0.86067796,3218.7,3217.9,1.28829647]
[1768841427194,0.86067796,3218.7,3217.6,0.15912725]
[1768841427397,0.86067796,3218.7,3217.6,1.44742372]
[1768841428999,0.86067796,3218.7,3217.8,1.28829647]
[1768841433402,1.44430594,3219.2,3218.0,0.15546]
[1768841433595,1.44430594,3219.2,3218.3,1.28829647]
[1768841434307,1.44430594,3219.2,3218.0,0.15546]
[1768841434308,2.73260241,3219.2,3218.0,0.15546]
[1768841434603,1.44430594,3219.2,3218.1,1.28829647]
[1768841435701,1.44430594,3219.2,3218.3,1.28829647]
[1768841436090,1.44430594,3219.2,3218.1,1.28829647]
[1768841438010,1.44430594,3219.2,3218.0,0.15546]
[1768841439509,1.44430594,3219.2,3218.1,1.28829647]
[1768841440397,1.44430594,3219.2,3218.1,1.44374647]
[1768841440602,1.49324524,3219.6,3218.1,1.44374647]
[1768841440804,1.49324524,3219.6,3218.3,1.28829647]
[1768841441806,1.49324524,3219.4,3218.1,1.44374647]
[1768841442808,1.49324524,3219.4,3218.1,0.15545]
[1768841443109,1.49324524,3219.4,3218.1,1.44374647]
[1768841445511,2.35065708,3219.3,3218.1,1.44374647]
[1768841445710,1.49324524,3219.3,3218.1,1.44374647]
[1768841450915,1.49324524,3219.3,3218.1,0.15545]
[1768841457121,0.8558511,3219.2,3218.1,0.15545]
[1768841457324,1.44852877,3219.2,3218.1,0.15545]
[1768841464129,0.85678323,3219.1,3218.1,0.15545]
[1768841464318,1.44852877,3219.2,3218.1,0.15545]
[1768841464519,0.85679267,3219.1,3218.1,0.15545]
[1768841464819,1.44852877,3219.2,3218.1,0.15545]
[1768841465128,0.85685488,3219.1,3218.1,0.15545]
[1768841465426,1.44852877,3219.2,3218.1,0.15545]
[1768841465625,0.85686372,3219.1,3218.1,0.15545]
[1768841465826,1.44852877,3219.2,3218.1,0.15545]
[1768841466027,0.85686405,3219.1,3218.1,0.15545]
[1768841466227,1.44852877,3219.2,3218.1,0.15545]
[1768841466427,0.8569294,3219.1,3218.1,0.15545]